[Event "Mitropa Cup Open 2024"]
[Site "Apolda"]
[Date "2024.02.21"]
[Round "7.10"]
[White "Haring, Filip"]
[Black "Brunello, Sabino"]
[Result "0-1"]
[ECO "B90"]
[WhiteElo "2432"]
[BlackElo "2512"]
[Annotator "TA"]
[PlyCount "72"]
[EventDate "2024.02.15"]
[EventType "team-tourn"]
[EventCountry "GER"]
[SourceTitle "playchess.com"]
[Source "ChessBase"]
[SourceQuality "1"]
[WhiteTeam "Slovakia"]
[BlackTeam "Italy"]
[WhiteTeamCountry "SVK"]
[BlackTeamCountry "ITA"]
[TimeControl "40/5400+30:1800+30"]

{[%evp 11,72,11,18,10,0,0,0,0,0,0,0,-25,0,0,-4,-18,-33,-29,-25,-45,-23,-13,-13,-21,-23,-129,-126,-136,-129,-131,-105,-130,-129,-266,-262,-279,-235,-237,-236,-291,-280,-393,-422,-408,-414,-547,-296,-435,-391,-587,-525,-579,-566,-802,-789,-2112,-1464,-5835,-5714,-29986,-29987,-29987,-5493]} 1. e4 {[%emt 0:00:05]} c5 {[%emt 0:00:05]} 2. Nf3 {[%emt 0:00:08]} d6 {[%emt 0:00:03]} 3. d4 {[%emt 0:00:38]} cxd4 {[%emt 0:00:06]} 4. Nxd4 {[%emt 0:00:05]} Nf6 {[%emt 0:00:03]} 5. Nc3 {[%emt 0:00:11]} a6 {[%emt 0:00:06]} 6. h3 {[%emt 0:03:23]} e5 {[%emt 0:00:22]} 7. Nf3 {[%emt 0:00:47]} Qc7 {[%emt 0:01:21]} 8. Bg5 {[%emt 0:02:56]} Nbd7 {[%emt 0:00:25]} 9. a4 {[%emt 0:02:30] The position is equal.} h6 {[%emt 0:03:36]} 10. Be3 {[%emt 0:06:02]} Nc5 {[%emt 0:00:52]} 11. Nd2 {[%emt 0:02:32]} Be6 {[%emt 0:00:15]} 12. Be2 {[%emt 0:08:31]} Be7 {[%emt 0:05:46]} 13. Bg4 {[%emt 0:10:17]} O-O {[%emt 0:06:07]} 14. O-O {[%emt 0:08:47]} Rad8 {[%emt 0:25:25]} 15. Qe2 {[%emt 0:03:31]} d5 {[%emt 0:00:35]} 16. exd5 {[%emt 0:01:03]} Nxd5 {[%emt 0:05:29]} 17. Nxd5 {[%emt 0:03:01]} Bxd5 {[%emt 0:01:17]} 18. Rfd1 {[%emt 0:16:11]} (18. Bf3 $11 {remains equal.}) 18... f5 $17 {[%emt 0:06:11] Black is more active.} 19. Bh5 {[%emt 0:00:04]} e4 {[%emt 0:09:04]} 20. b4 {[%emt 0:07:38] [#]} Nd7 {[%emt 0:10:50][%csl LRb4,LRc2]} 21. c4 {[%emt 0:01:49]} Be6 {[%emt 0:01:07]} 22. c5 {[%emt 0:00:34] White does not recover from this.} (22. Nb3 $17 {keeps fighting.}) 22... Nf6 $19 {[%emt 0:10:20]} 23. g3 {[%emt 0:00:56]} Nd5 {[%emt 0:00:59] Wards off Bf4} 24. Nc4 {[%emt 0:07:39]} Nxb4 {[%emt 0:02:49]} 25. Nd6 {[%emt 0:00:56]} Nd3 {[%emt 0:00:37]} 26. Rdb1 {[%emt 0:04:28]} (26. Rxd3 {was called for.} exd3 27. Qxd3 Bxd6 28. cxd6 Rxd6 (28... Qxd6 $2 29. Qxd6 Rxd6 30. Bc5 $17) 29. Qe2) 26... Bxd6 {[%emt 0:01:28]} (26... Nxc5 27. Bxc5 Rxd6 (27... Bxd6 28. Bb6 $17) (27... Qxc5 28. Nxb7 Bc4 29. Qc2 $11) 28. Bxd6 Bxd6 29. Rc1 $17) 27. cxd6 {[%emt 0:00:05]} Rxd6 {[%emt 0:00:10] [#] Hoping for ...f4.} 28. a5 {[%emt 0:00:31]} Rc6 {[%emt 0:05:09] Strongly threatening ...f4.} 29. Bb6 {[%emt 0:01:00]} (29. Qd2 $142) 29... Qd7 {[%emt 0:01:05]} 30. f3 {[%emt 0:03:18]} (30. Rf1 $142) 30... Bd5 {[%emt 0:02:52]} 31. Rf1 {[%emt 0:01:25]} Qd6 {[%emt 0:00:32]} 32. Qg2 {[%emt 0:01:22]} Rfc8 {[%emt 0:00:39] aiming for ...Rc2.} 33. fxe4 {[%emt 0:02:31]} Rc2 {[%emt 0:00:31]} 34. Rf2 {[%emt 0:01:23]} Nxf2 {[%emt 0:00:15]} 35. exd5 {[%emt 0:00:21]} Ne4 {[%emt 0:00:34]} 36. Qf3 {[%emt 0:00:05]} Nxg3 {[%emt 0:00:40] Weighted Error Value: White=0.99/Black=0.13 (very precise) .  Mistake:       	White=5     	---        Inaccurate:     	White=3     	Black=1      OK:         	White=8     	Black=17     Best:        	White=1     	Black=1} (36... Ng5 $142 37. Bf7+ Nxf7 (37... Kxf7 38. Qxf5+ Kg8 39. Bf2 g6 40. Qxc8+ Rxc8 41. h4 Nh3+ 42. Kg2 Nxf2 43. Kxf2 Rc2+ 44. Kf3 Qxd5+ 45. Ke3 Qb3+ 46. Ke4 Qc4+ 47. Ke5 Re2+ 48. Kf6 Qf7#) 38. Bd4 Ng5 (38... Rc1+ $2 39. Rxc1 Rxc1+ 40. Kh2 $19) 39. Qb3 R8c4 (39... Nxh3+ $2 40. Kf1 $19) 40. Rf1 Qxd5 (40... Nxh3+ {leads to mate.} 41. Kh1 Qxd5+ 42. Rf3 Qxd4 43. Rf1 Nf2+ 44. Kg2 Ng4+ 45. Qxc2 Rxc2+ 46. Rf2 Rxf2+ 47. Kh3 Rh2#) 41. Rf2 Nxh3+ (41... Rxd4 $2 42. Qxd5+ Rxd5 43. Rxc2 $19) (41... Rc1+ {gets mated.} 42. Rf1 Nxh3+ 43. Kh2 Rxf1 44. Bg1 Rxg1 45. Qf3 Qxf3 46. Kxh3 Qxg3#) (41... Qxd4 {is a self mate.} 42. Qxc4+ Qxc4 43. Rxc2 Qxc2 44. h4 Nh3+ 45. Kh1 Qf2 46. h5 Qg1#) 42. Kh2 Nxf2 (42... Rxf2+ 43. Bxf2 Nxf2 44. Qb1) 43. Qxc4 Qxc4 44. Bb6 Ng4+ 45. Kg1 Rc1+ 46. Kg2 Qf1#) 0-1

[Event "Mitropa Cup Open 2024"]
[Site "Apolda"]
[Date "2024.02.21"]
[Round "7.11"]
[White "David, Alberto"]
[Black "Bochnicka, Vladimir"]
[Result "1/2-1/2"]
[ECO "D41"]
[WhiteElo "2525"]
[BlackElo "2398"]
[Annotator "TA"]
[PlyCount "135"]
[EventDate "2024.02.15"]
[EventType "team-tourn"]
[EventCountry "GER"]
[SourceTitle "playchess.com"]
[Source "ChessBase"]
[SourceQuality "1"]
[WhiteTeam "Italy"]
[BlackTeam "Slovakia"]
[WhiteTeamCountry "ITA"]
[BlackTeamCountry "SVK"]
[TimeControl "40/5400+30:1800+30"]

{[%evp 43,135,47,49,38,45,45,35,52,57,60,59,71,54,10,88,88,88,95,88,88,88,88,95,88,104,81,95,81,96,88,96,96,96,95,97,96,96,95,96,96,96,96,96,0,96,0,96,82,82,88,95,74,74,74,95,95,96,74,74,74,74,74,75,75,96,0,74,0,119,74,74,74,74,74,74,74,74,74,74,74,74,8,8,8,8,8,8,0,0,0,8,-8,0,0]} 1. Nf3 {[%emt 0:00:09]} d5 {[%emt 0:00:07]} 2. d4 {[%emt 0:01:48]} Nf6 {[%emt 0:00:18]} 3. c4 {[%emt 0:02:15]} e6 {[%emt 0:00:22]} 4. Nc3 {[%emt 0:03:22]} c5 {[%emt 0:01:00]} 5. cxd5 {[%emt 0:01:01]} cxd4 {[%emt 0:00:57]} 6. Qa4+ {[%emt 0:09:04]} Bd7 {[%emt 0:02:45]} 7. Qxd4 {[%emt 0:00:27]} exd5 {[%emt 0:00:17]} 8. Bg5 {[%emt 0:03:01]} Be7 {[%emt 0:08:29]} 9. e3 {[%emt 0:01:35]} O-O {[%emt 0:01:33]} 10. Be2 {[%emt 0:03:00]} Nc6 {[%emt 0:00:42]} 11. Qd3 {[%emt 0:01:31]} Be6 {[%emt 0:01:00]} 12. O-O {[%emt 0:00:42]} h6 {[%emt 0:03:29]} 13. Bh4 {[%emt 0:03:13]} Qb6 {[%emt 0:06:03]} 14. a3 {[%emt 0:08:24]} Rfd8 {[%emt 0:07:14]} 15. Rfd1 {[%emt 0:07:28]} a6 {[%emt 0:01:23]} 16. b4 {[%emt 0:02:11]} Rac8 {[%emt 0:06:38]} 17. h3 {[%emt 0:03:39]} Qa7 {[%emt 0:08:10]} 18. Rab1 {[%emt 0:03:51]} b5 {[%emt 0:01:38]} 19. Rbc1 {[%emt 0:01:40]} Ne8 {[%emt 0:20:13]} 20. Bxe7 {[%emt 0:00:47]} Qxe7 {[%emt 0:01:08]} 21. Qb1 {[%emt 0:02:17]} Qf6 {[%emt 0:01:23]} 22. a4 {[%emt 0:12:52]} Bf5 {[%emt 0:09:47]} 23. Qb3 {[%emt 0:09:12]} bxa4 {[%emt 0:10:28]} 24. Qxa4 {[%emt 0:11:07]} d4 {[%emt 0:00:29]} 25. exd4 {[%emt 0:00:37]} (25. Nxd4 {seems wilder.} Nxd4 26. exd4 Rxd4 27. Rxd4 Qxd4 28. Bxa6 Qd2 29. Qa1) 25... Nxd4 {[%emt 0:01:15]} 26. Nxd4 {[%emt 0:00:08]} (26. Qxa6 $2 Nxf3+ 27. Kh1 Rxd1+ (27... Rxc3 28. Qxf6 Rxd1+ 29. Bxd1 $15) 28. Rxd1 Qxa6 (28... Rxc3 $2 29. Qxf6 Nxf6 30. Bxf3 $19) (28... Qxc3 $2 29. Bxf3 Qxb4 30. Qb7 $19) 29. Bxa6 Rxc3 $19) (26. Rxd4 {feels hotter.} Rxd4 27. Nxd4 Qxd4 28. Bxa6 Qd2 29. Qa1) 26... Rxd4 {[%emt 0:00:17]} 27. Rxd4 {[%emt 0:02:37]} (27. Qxa6 $2 Qxa6 (27... Rxb4 28. Qa3 $11) (27... Rxd1+ $2 28. Rxd1 Qxa6 29. Bxa6 $19) 28. Bxa6 Rxc3 (28... Rxb4 $2 29. Bxc8 Bxc8 30. Nd5 $18) (28... Rxd1+ $2 29. Rxd1 Rxc3 30. Rd5 $19) 29. Rxd4 Rxc1+ $19) (27. Bxa6 Rxc3 28. Qxe8+ Kh7 $11) 27... Qxd4 {[%emt 0:00:10]} 28. Bxa6 {[%emt 0:00:05]} Rxc3 {[%emt 0:02:44]} (28... Qd2 $1 $11 {keeps the balance.} 29. Qa3 Ra8) 29. Qxe8+ $16 {[%emt 0:00:43]} Kh7 {[%emt 0:00:03]} 30. Rxc3 {[%emt 0:04:23]} Qxc3 {[%emt 0:00:06] [#]} 31. Bf1 $1 {[%emt 0:00:38]} ({Of course not} 31. Qxf7 $6 Qc1+ 32. Kh2 (32. Bf1 $2 Bd3 $19) 32... Qf4+ 33. Kg1 Qc1+ 34. Kh2 (34. Bf1 $2 Bd3 $17) 34... Qf4+ 35. Kh1 (35. Kg1 Qc1+ $11) 35... Qc1+ 36. Kh2 $11) 31... Qxb4 {[%emt 0:01:52]} 32. Qxf7 {[%emt 0:00:05]} Qb1 {[%emt 0:00:24]} 33. Qc4 {[%emt 0:01:27]} Qe1 {[%emt 0:00:56]} 34. Qd4 {[%emt 0:00:44]} Qe4 {[%emt 0:00:37]} 35. Qd2 {[%emt 0:00:39]} Qc2 {[%emt 0:00:20]} 36. Qd6 {[%emt 0:00:34]} Qb1 {[%emt 0:00:37]} 37. h4 {[%emt 0:00:44]} h5 {[%emt 0:01:03]} 38. Qc5 {[%emt 0:00:35]} Qc2 {[%emt 0:01:42]} 39. Qa5 {[%emt 0:00:50]} (39. Qxc2 {simplifies} Bxc2 40. Kh2 Kg6 41. Be2) 39... Qb1 {[%emt 0:00:18]} 40. Qd8 {[%emt 0:00:27]} Bg6 {[%emt 0:00:23]} 41. Qg5 {[%emt 0:04:44]} Bf7 {[%emt 0:01:59]} 42. Qf4 {[%emt 0:06:55]} Bg6 {[%emt 0:00:11]} 43. Qd6 {[%emt 0:02:47]} ({White should play} 43. Qc4 $16) 43... Qe4 {[%emt 0:02:36]} (43... Bf5 $1 $11 {remains equal.}) 44. Qd8 {[%emt 0:00:25]} Qb1 $1 {[%emt 0:00:35]} 45. f3 {[%emt 0:01:32]} Qe1 {[%emt 0:01:06]} 46. Qd4 {[%emt 0:00:06]} Bf5 {[%emt 0:00:33]} 47. Qc4 {[%emt 0:01:13]} Bg6 {[%emt 0:02:09] [#]} 48. Kh2 $1 {[%emt 0:01:14]} Qe5+ {[%emt 0:00:19]} 49. g3 {[%emt 0:01:03]} Qe3 {[%emt 0:00:17]} 50. Qd5 {[%emt 0:00:48]} Qf2+ {[%emt 0:00:35]} 51. Bg2 {[%emt 0:00:05]} Qe1 {[%emt 0:01:17]} 52. Qg5 {[%emt 0:04:18]} Qe6 {[%emt 0:00:46]} 53. Qd2 {[%emt 0:02:48]} Qf5 {[%emt 0:00:31]} 54. Qg5 {[%emt 0:02:47]} Qe6 $1 {[%emt 0:03:02]} (54... Qxg5 55. hxg5 Bf5 56. Bh3) 55. Qd2 {[%emt 0:03:04]} Qf5 $1 {[%emt 0:00:07]} 56. f4 {[%emt 0:01:03]} Qc2 {[%emt 0:00:58]} 57. Qxc2 {[%emt 0:00:41]} Bxc2 {[%emt 0:00:06]} 58. Kg1 {[%emt 0:00:59]} g6 {[%emt 0:00:05]} 59. Kf2 {[%emt 0:00:05]} Kg7 {[%emt 0:00:05]} 60. Ke3 {[%emt 0:00:05]} Kf6 {[%emt 0:00:06]} 61. Kd4 {[%emt 0:01:01]} Bd1 {[%emt 0:00:52]} 62. Kd5 {[%emt 0:00:33]} (62. Bd5 $16) 62... Kf5 $1 $11 {[%emt 0:00:41]} 63. Be4+ {[%emt 0:00:34]} Kg4 {[%emt 0:01:05]} 64. Bxg6 {[%emt 0:00:12]} Kxg3 {[%emt 0:24:09]} 65. Ke5 Kxh4 {[%emt 0:00:00]} 66. f5 {[%emt 0:00:43]} Bc2 {[%emt 0:00:00]} 67. Bxh5 {[%emt 0:00:08]} Bxf5 {[%emt 0:00:00]} 68. Kxf5 {[%emt 0:00:02]} 1/2-1/2

[Event "Mitropa Cup Open 2024"]
[Site "Apolda"]
[Date "2024.02.21"]
[Round "7.13"]
[White "Baidetskyi, Valentin"]
[Black "Georgiadis, Nico"]
[Result "0-1"]
[ECO "B90"]
[WhiteElo "2499"]
[BlackElo "2547"]
[Annotator "TA"]
[PlyCount "84"]
[EventDate "2024.02.15"]
[EventType "team-tourn"]
[EventCountry "GER"]
[SourceTitle "playchess.com"]
[Source "ChessBase"]
[SourceQuality "1"]
[WhiteTeam "Austria"]
[BlackTeam "Switzerland"]
[WhiteTeamCountry "AUT"]
[BlackTeamCountry "SUI"]
[TimeControl "40/5400+30:1800+30"]

{[%evp 9,84,18,31,12,15,20,8,-20,-2,-71,-38,-53,-51,-45,-51,-100,-30,-35,-30,-27,-30,-148,-154,-226,-231,-228,-235,-235,-225,-221,-234,-300,-297,-273,-188,-190,-182,-193,-167,-252,-249,-322,-322,-329,-325,-325,-291,-356,-344,-351,-231,-250,-242,-285,-297,-348,-342,-466,-466,-466,-466,-466,-459,-425,-265,-423,-316,-421,-397,-529,-514,-1081,-1073,-1073,-1073,-913,-869]} 1. e4 {[%emt 0:00:47]} c5 {[%emt 0:00:07]} 2. Nf3 {[%emt 0:00:04]} d6 {[%emt 0:00:07]} 3. d4 {[%emt 0:00:08]} cxd4 {[%emt 0:00:05]} 4. Nxd4 {[%emt 0:00:05]} Nf6 {[%emt 0:00:10]} 5. Nc3 {[%emt 0:00:05]} a6 {[%emt 0:00:05]} 6. Qd3 {[%emt 0:00:11]} Nbd7 {[%emt 0:03:14]} 7. Be2 {[%emt 0:01:48]} e6 {[%emt 0:00:06]} 8. g4 {[%emt 0:04:03] The position is equal.} h6 {[%emt 0:03:27]} 9. g5 {[%emt 0:02:01]} (9. Qh3 $11) 9... hxg5 {[%emt 0:20:30]} 10. Bxg5 {[%emt 0:03:43]} b5 {[%emt 0:04:49]} 11. a3 $1 {[%emt 0:15:30]} Bb7 {[%emt 0:00:33]} 12. f4 {[%emt 0:01:03]} (12. f3 $15 {is superior.}) 12... Rc8 {[%emt 0:08:36]} (12... Nc5 $17 13. Qe3 Qb6 (13... Bxe4 $2 {too greedy.} 14. Bxf6 Qxf6 15. Nxe4 $18) 14. Bxf6 gxf6) 13. Bf3 $11 {[%emt 0:08:00]} Qa5 {[%emt 0:09:13]} 14. Nb3 {[%emt 0:15:36] Inhibits Nc5.} Qb6 {[%emt 0:09:27]} 15. O-O-O {[%emt 0:14:40] [#] Black keeps a firm grip on the game.} (15. h4 $1 $11 {keeps the balance.}) 15... Rh3 $1 $17 {[%emt 0:00:46][%cal Oc8c3] Strongly threatening ...Rxc3!} 16. Qf1 {[%emt 0:13:56]} (16. Bxf6 $17 {was called for.} Nxf6 17. Rde1) 16... Qe3+ $19 {[%emt 0:11:52]} 17. Nd2 {[%emt 0:01:20] [#]} Rxf3 {[%emt 0:01:01][%mdl 512]} 18. Qxf3 {[%emt 0:00:05]} Qxf3 {[%emt 0:00:05]} 19. Nxf3 {[%emt 0:00:02]} Nxe4 {[%emt 0:00:10]} 20. Rhf1 {[%emt 0:01:23]} Nxc3 {[%emt 0:03:33]} 21. bxc3 {[%emt 0:00:03]} Rxc3 {[%emt 0:00:46]} 22. Rd3 {[%emt 0:01:43]} Rc8 {[%emt 0:01:07]} 23. Re1 {[%emt 0:02:15] Against Be4} g6 {[%emt 0:00:31]} 24. h4 {[%emt 0:06:47]} (24. Nd2 $142) 24... f6 {[%emt 0:04:46][%cal Od7c5] ...Nc5! is the strong threat.} 25. Bxf6 {[%emt 0:02:16]} Bxf3 {[%emt 0:00:48]} 26. Rxf3 {[%emt 0:01:08]} Nxf6 {[%emt 0:00:05]} 27. Rxe6+ {[%emt 0:00:13]} Kf7 {[%emt 0:00:06]} 28. Ree3 {[%emt 0:00:58]} Bh6 {[%emt 0:01:03]} 29. Kb2 {[%emt 0:01:54]} Nh5 {[%emt 0:04:58][%cal Oc8c4]} 30. Kb3 {[%emt 0:02:37]} Rc5 {[%emt 0:01:57][%cal Oc5f5]} (30... Bxf4 31. Re4 Rc4 32. Rxc4 bxc4+ 33. Kxc4) 31. Rd3 {[%emt 0:00:41]} Ke6 {[%emt 0:00:59]} ({Weaker is} 31... Bxf4 32. Rxd6 a5 33. Ra6 $17) 32. Rfe3+ {[%emt 0:00:01]} Kd7 {[%emt 0:00:21]} 33. Re5 {[%emt 0:00:22]} Nxf4 {[%emt 0:00:07]} 34. Rxc5 {[%emt 0:00:21]} Nxd3 {[%emt 0:00:05]} 35. Rd5 {[%emt 0:00:19]} Nc5+ {[%emt 0:03:05]} 36. Ka2 {[%emt 0:01:51]} Kc6 {[%emt 0:03:20]} 37. Rd1 {[%emt 0:00:30]} (37. Rd4 $142 Ne6 38. Re4) 37... Nd7 {[%emt 0:00:10]} 38. Rf1 {[%emt 0:00:30]} a5 {[%emt 0:01:00] Threatens to win with ...a4.} 39. Rf7 {[%emt 0:00:30]} a4 {[%emt 0:00:56] Black is clearly winning.} 40. h5 {[%emt 0:00:30]} (40. Rf3 $142) 40... gxh5 {[%emt 0:00:04]} 41. Rh7 {[%emt 0:30:07]} Be3 {[%emt 0:30:20]} 42. Rxh5 {[%emt 0:00:05]} Nb6 {[%emt 0:02:09] Weighted Error Value: White=0.57/Black=0.18 (very precise) .  Mistake:       	White=7     	Black=1      Inaccurate:     	White=4     	Black=4      OK:         	White=9     	Black=19     Best:        	White=2     	Black=2      Strong:       	White=1     	Black=1      Brilliant:      	---       	Black=1} 0-1

[Event "Mitropa Cup Open 2024"]
[Site "Apolda"]
[Date "2024.02.21"]
[Round "7.14"]
[White "Bogner, Sebastian"]
[Black "Peyrer, Konstantin"]
[Result "1-0"]
[ECO "D35"]
[WhiteElo "2538"]
[BlackElo "2439"]
[Annotator "TA"]
[PlyCount "121"]
[EventDate "2024.02.15"]
[EventType "team-tourn"]
[EventCountry "GER"]
[SourceTitle "playchess.com"]
[Source "ChessBase"]
[SourceQuality "1"]
[WhiteTeam "Switzerland"]
[BlackTeam "Austria"]
[WhiteTeamCountry "SUI"]
[BlackTeamCountry "AUT"]
[TimeControl "40/5400+30:1800+30"]

{[%evp 33,121,0,25,13,37,0,0,0,11,0,0,1,50,0,38,50,35,30,91,33,90,61,66,71,88,72,87,75,189,184,191,176,271,212,201,203,268,269,275,288,293,302,291,306,302,298,314,331,331,331,328,238,368,301,341,363,429,429,427,434,504,464,568,441,441,443,461,410,416,409,583,529,1415,1488,1616,1494,4321,1794,29967,29966,29966,29967,29970,29971,29972,29973,29973,29974,29972,29966]} 1. d4 {[%emt 0:00:02]} Nf6 {[%emt 0:00:07]} 2. c4 {[%emt 0:00:05]} e6 {[%emt 0:00:06]} 3. Nf3 {[%emt 0:00:08]} d5 {[%emt 0:00:05]} 4. Nc3 {[%emt 0:00:04]} Nbd7 {[%emt 0:00:24]} 5. cxd5 {[%emt 0:01:28]} exd5 {[%emt 0:00:07]} 6. Bg5 {[%emt 0:00:11]} c6 {[%emt 0:00:08]} 7. e3 {[%emt 0:00:30]} h6 {[%emt 0:00:20] D35: Queen's Gambit Declined: Exchange Variation.} 8. Bh4 {[%emt 0:00:19]} g5 {[%emt 0:00:06]} 9. Bg3 {[%emt 0:00:03]} Nh5 {[%emt 0:00:05]} 10. Be5 {[%emt 0:01:25]} Nhf6 {[%emt 0:00:40]} 11. Bg3 {[%emt 0:04:01]} Nh5 {[%emt 0:00:14] 11...Nh5 was played by the boomers.} 12. Bd3 {[%emt 0:01:34]} Nxg3 {[%emt 0:00:09]} 13. hxg3 {[%emt 0:00:03]} Bg7 {[%emt 0:00:08]} 14. Qc2 {[%emt 0:04:59]} Qe7 {[%emt 0:01:23]} 15. O-O {[%emt 0:02:04]} O-O {[%emt 0:00:19]} 16. Rfe1 {[%emt 0:12:05]} Nf6 {[%emt 0:02:00]} 17. a3 $146 {[%emt 0:05:31]} ({Predecessor:} 17. Rab1 Be6 18. Na4 Rae8 19. a3 Bc8 20. b4 Ne4 21. b5 cxb5 22. Bxb5 Rd8 23. Nc5 {½-½ Jimenez Diaz,F (2178)-Rodriguez Perez,R (2161) ESP AEAC W/M/104 email 2023}) 17... Be6 {[%emt 0:06:07]} 18. b4 {[%emt 0:07:00]} a5 {[%emt 0:16:17]} 19. Rab1 {[%emt 0:00:54]} axb4 {[%emt 0:03:20]} 20. axb4 {[%emt 0:00:05]} Nd7 {[%emt 0:00:09]} 21. e4 {[%emt 0:14:16]} dxe4 {[%emt 0:00:50]} 22. Bxe4 {[%emt 0:01:24]} Ra3 {[%emt 0:01:12]} (22... Nf6 $11) 23. Bh7+ $14 {[%emt 0:07:53]} Kh8 {[%emt 0:00:06]} 24. Bf5 {[%emt 0:00:03]} Bxf5 {[%emt 0:15:48]} 25. Qxf5 {[%emt 0:00:05]} (25. Rxe7 $2 Bxc2 26. Rxd7 g4 $19 (26... Rxc3 $2 27. Re1 $19)) 25... Qd6 {[%emt 0:00:06]} (25... Qd8 $11 {remains equal.} 26. Ne4 Nf6) 26. Re3 {[%emt 0:01:33]} (26. Ne4 $16 Qd5 27. Qxd5 cxd5 28. Nd6) 26... Qg6 {[%emt 0:01:50]} (26... Ra7 $14) 27. Qxd7 $16 {[%emt 0:10:52]} Rxc3 $1 {[%emt 0:00:11]} 28. Ree1 {[%emt 0:02:35]} Rc2 {[%emt 0:02:51]} 29. Rbc1 {[%emt 0:03:36]} Rb2 {[%emt 0:06:34]} (29... Rxc1 30. Rxc1 Kh7 31. Qxb7 $16) 30. Qxb7 {[%emt 0:00:57]} g4 {[%emt 0:00:26]} (30... Kg8 $16) 31. Ne5 $18 {[%emt 0:06:02]} (31. Rxc6 Qf5 32. Rc5 Qf6 $11) 31... Qf5 {[%emt 0:01:07]} 32. Rf1 {[%emt 0:00:11]} (32. Nxc6 $2 {gets mated.} Qxf2+ 33. Kh2 Qxg2#) 32... Qe4 {[%emt 0:01:28]} (32... Bxe5 {is a better defense.} 33. dxe5 Qe4) 33. Nxc6 {[%emt 0:05:30]} Bxd4 {[%emt 0:00:25] [#]} 34. Qb5 $1 {[%emt 0:00:13]} Rc8 {[%emt 0:17:37]} 35. Nxd4 {[%emt 0:06:29]} Rxc1 {[%emt 0:00:07]} 36. Rxc1 {[%emt 0:00:16]} Qxd4 {[%emt 0:00:04]} 37. Qf5 {[%emt 0:00:14]} Kg7 {[%emt 0:01:34]} 38. Rc7 {[%emt 0:01:20]} Qf6 {[%emt 0:00:05]} 39. Qxg4+ {[%emt 0:00:19]} Qg5 {[%emt 0:01:36]} 40. Qd4+ {[%emt 0:00:28]} Qf6 {[%emt 0:00:31]} 41. Qxf6+ {[%emt 0:33:34]} Kxf6 {[%emt 0:30:42]} 42. Rc4 {[%emt 0:00:31]} Rb1+ {[%emt 0:00:38]} (42... h5 $142 43. Rf4+ Kg6) 43. Kh2 $18 {[%emt 0:00:01]} Kg6 {[%emt 0:00:23]} 44. g4 {[%emt 0:00:07]} Rb3 {[%emt 0:00:17]} 45. f3 {[%emt 0:00:50]} Rb2 {[%emt 0:00:15]} 46. Rc6+ {[%emt 0:00:19]} Kg7 {[%emt 0:00:52]} 47. Rb6 {[%emt 0:00:17]} Kh7 {[%emt 0:00:23]} 48. Kg3 {[%emt 0:00:21]} Kg7 {[%emt 0:24:18]} 49. b5 {[%emt 0:00:00]} Rb4 {[%emt 0:00:00]} 50. Rb7 {[%emt 0:00:00]} Rb2 {[%emt 0:00:00]} 51. b6 {[%emt 0:00:00]} Kg6 {[%emt 0:00:00]} (51... Kf6 $142 52. Kf4 Kg7) 52. Kf4 $18 {[%emt 0:00:00]} Rxg2 {[%emt 0:00:00]} 53. Rc7 {[%emt 0:00:00]} Rb2 {[%emt 0:00:00]} 54. b7 {[%emt 0:00:00]} Rb5 {[%emt 0:00:00]} 55. Ke4 {[%emt 0:00:00]} f5+ {[%emt 0:00:00]} 56. gxf5+ {[%emt 0:00:00]} Kf6 {[%emt 0:00:00]} 57. Kd4 {[%emt 0:00:00]} h5 {[%emt 0:00:00]} 58. Kc4 {[%emt 0:00:00]} Rb1 {[%emt 0:00:00]} 59. Kc5 {[%emt 0:00:00]} Kxf5 {[%emt 0:00:00]} 60. Kc6 {[%emt 0:00:00]} Kf4 {[%emt 0:00:00]} 61. Rh7 {[%emt 0:00:00]} 1-0